[Event "Live Chess"]
[Site "Chess.com"]
[Date "2023.05.21"]
[Round "-"]
[White "smoggyrabbit"]
[Black "raminguy"]
[Result "0-1"]
[WhiteElo "1739"]
[BlackElo "1967"]
[TimeControl "300"]
[EndTime "16:46:34 PDT"]
[Termination "raminguy won on time"]

1. d4 {[%clk 0:04:58.7]} 1... d5 {[%clk 0:04:56.1]} 2. Nf3 {[%clk 0:04:57.7]}
2... Nf6 {[%clk 0:04:54.7]} 3. e3 {[%clk 0:04:56.3]} 3... e6 {[%clk 0:04:54.3]}
4. Bd3 {[%clk 0:04:55.2]} 4... Be7 {[%clk 0:04:53.8]} 5. O-O {[%clk 0:04:53.9]}
5... O-O {[%clk 0:04:53.5]} 6. b3 {[%clk 0:04:52.2]} 6... c5 {[%clk 0:04:53.2]}
7. Bb2 {[%clk 0:04:50.3]} 7... Nc6 {[%clk 0:04:52.9]} 8. Nbd2 {[%clk 0:04:47.2]}
8... cxd4 {[%clk 0:04:52.3]} 9. exd4 {[%clk 0:04:45.8]} 9... Re8 {[%clk
0:04:49.8]} 10. a3 {[%clk 0:04:40.7]} 10... Qc7 {[%clk 0:04:48.1]} 11. Ne5
{[%clk 0:04:37.7]} 11... b6 {[%clk 0:04:45.1]} 12. f4 {[%clk 0:04:33.9]} 12...
Bb7 {[%clk 0:04:43.7]} 13. Rf3 {[%clk 0:04:26.4]} 13... Nxe5 {[%clk 0:04:41.3]}
14. fxe5 {[%clk 0:04:25.3]} 14... Ne4 {[%clk 0:04:41]} 15. Rh3 {[%clk
0:04:20.5]} 15... Rac8 {[%clk 0:04:35.4]} 16. Bxe4 {[%clk 0:04:04.7]} 16... dxe4
{[%clk 0:04:32.7]} 17. Qh5 {[%clk 0:04:02.8]} 17... h6 {[%clk 0:04:31]} 18. Rf1
{[%clk 0:03:57.8]} 18... Bg5 {[%clk 0:04:23.6]} 19. Nc4 {[%clk 0:03:48.3]} 19...
Rf8 {[%clk 0:04:07.2]} 20. Bc1 {[%clk 0:03:21.6]} 20... Bxc1 {[%clk 0:04:02.6]}
21. Rxc1 {[%clk 0:03:20.2]} 21... Rcd8 {[%clk 0:03:57.9]} 22. Rg3 {[%clk
0:03:09.7]} 22... Kh7 {[%clk 0:03:08.3]} 23. Rf1 {[%clk 0:02:29.3]} 23... Rxd4
{[%clk 0:03:03.2]} 24. Rf4 {[%clk 0:02:06]} 24... b5 {[%clk 0:02:42.8]} 25.
Rxg7+ {[%clk 0:01:56.4]} 25... Kxg7 {[%clk 0:02:37.3]} 26. Rg4+ {[%clk
0:01:55.6]} 26... Kh7 {[%clk 0:02:29.9]} 27. Rh4 {[%clk 0:01:53.6]} 27... Rd1+
{[%clk 0:01:45.8]} 28. Kf2 {[%clk 0:01:14.9]} 28... Qc5+ {[%clk 0:01:43.1]} 29.
Ke2 {[%clk 0:01:11.4]} 29... Re1+ {[%clk 0:01:28.7]} 30. Kxe1 {[%clk 0:01:01]}
30... Qg1+ {[%clk 0:01:27.3]} 31. Kd2 {[%clk 0:00:49]} 31... Qxg2+ {[%clk
0:01:25.1]} 32. Kc1 {[%clk 0:00:44.6]} 32... Qg1+ {[%clk 0:01:10.3]} 33. Kb2
{[%clk 0:00:42.5]} 33... Qg6 {[%clk 0:01:03.6]} 34. Qxg6+ {[%clk 0:00:38]} 34...
fxg6 {[%clk 0:01:02.5]} 35. Nd6 {[%clk 0:00:37.1]} 35... g5 {[%clk 0:00:37.7]}
36. Rh3 {[%clk 0:00:31]} 36... Bc6 {[%clk 0:00:35.7]} 37. Re3 {[%clk 0:00:27]}
37... Rf4 {[%clk 0:00:30.6]} 38. Rc3 {[%clk 0:00:20.7]} 38... Bd5 {[%clk
0:00:23.9]} 39. Rc7+ {[%clk 0:00:19.1]} 39... Kg6 {[%clk 0:00:22.7]} 40. Rxa7
{[%clk 0:00:17.8]} 40... e3 {[%clk 0:00:21]} 41. Ne8 {[%clk 0:00:15.7]} 41... e2
{[%clk 0:00:18.3]} 42. Rg7+ {[%clk 0:00:13.9]} 42... Kh5 {[%clk 0:00:17.6]} 43.
Nf6+ {[%clk 0:00:12.5]} 43... Rxf6 {[%clk 0:00:16.9]} 44. exf6 {[%clk
0:00:11.5]} 44... e1=Q {[%clk 0:00:16.6]} 45. f7 {[%clk 0:00:10.8]} 45... Qe5+
{[%clk 0:00:15.8]} 46. Ka2 {[%clk 0:00:08.3]} 46... Qxg7 {[%clk 0:00:15.7]} 47.
f8=Q {[%clk 0:00:06.7]} 47... Qxf8 {[%clk 0:00:15.1]} 48. c4 {[%clk 0:00:05.8]}
48... bxc4 {[%clk 0:00:14]} 49. bxc4 {[%clk 0:00:05.3]} 49... Bxc4+ {[%clk
0:00:13.9]} 50. Kb2 {[%clk 0:00:04.6]} 50... Qc5 {[%clk 0:00:12.9]} 51. Kc2
{[%clk 0:00:04.5]} 51... Qb5 {[%clk 0:00:11.9]} 52. Kd2 {[%clk 0:00:04.4]} 52...
Qb3 {[%clk 0:00:11.6]} 53. Ke1 {[%clk 0:00:04.1]} 53... Qxa3 {[%clk 0:00:11.5]}
54. Kd1 {[%clk 0:00:02.9]} 54... Qd3+ {[%clk 0:00:11.4]} 55. Kc1 {[%clk
0:00:02.6]} 55... Bb3 {[%clk 0:00:10.8]} 0-1

[Event "Live Chess"]
[Site "Chess.com"]
[Date "2023.05.21"]
[Round "-"]
[White "Singapourfeuj"]
[Black "Brooms1989"]
[Result "1-0"]
[WhiteElo "2207"]
[BlackElo "1106"]
[TimeControl "300"]
[EndTime "16:46:40 PDT"]
[Termination "Singapourfeuj won by checkmate"]

1. d4 {[%clk 0:04:59.3]} 1... Nf6 {[%clk 0:04:56.7]} 2. Nf3 {[%clk 0:04:58.4]}
2... g6 {[%clk 0:04:52.3]} 3. g3 {[%clk 0:04:57.5]} 3... Bg7 {[%clk 0:04:51.7]}
4. Bg2 {[%clk 0:04:57]} 4... O-O {[%clk 0:04:51.1]} 5. O-O {[%clk 0:04:56.3]}
5... d6 {[%clk 0:04:50.6]} 6. Nbd2 {[%clk 0:04:55.4]} 6... Bg4 {[%clk
0:04:48.5]} 7. h3 {[%clk 0:04:54.6]} 7... Bxf3 {[%clk 0:04:47]} 8. Nxf3 {[%clk
0:04:52.9]} 8... Nbd7 {[%clk 0:04:46.3]} 9. Re1 {[%clk 0:04:51.7]} 9... e5
{[%clk 0:04:44.5]} 10. e4 {[%clk 0:04:50.4]} 10... Re8 {[%clk 0:04:36.9]} 11. c3
{[%clk 0:04:49.5]} 11... c6 {[%clk 0:04:34.3]} 12. a4 {[%clk 0:04:45.9]} 12...
a5 {[%clk 0:04:31.4]} 13. Bg5 {[%clk 0:04:43.5]} 13... h6 {[%clk 0:04:28.8]} 14.
Bd2 {[%clk 0:04:41.7]} 14... Qb6 {[%clk 0:04:22.3]} 15. Qc2 {[%clk 0:04:39.8]}
15... Rac8 {[%clk 0:04:12.7]} 16. dxe5 {[%clk 0:04:38.6]} 16... dxe5 {[%clk
0:04:09]} 17. Be3 {[%clk 0:04:37.6]} 17... Qc7 {[%clk 0:03:59.5]} 18. Nd2 {[%clk
0:04:36.3]} 18... Rcd8 {[%clk 0:03:50.2]} 19. Bf1 {[%clk 0:04:34.9]} 19... Nb6
{[%clk 0:03:35.9]} 20. b4 {[%clk 0:04:32.5]} 20... axb4 {[%clk 0:03:31.4]} 21.
cxb4 {[%clk 0:04:31.5]} 21... Rd7 {[%clk 0:03:19.2]} 22. a5 {[%clk 0:04:30.2]}
22... Nc8 {[%clk 0:03:15.9]} 23. Nc4 {[%clk 0:04:28.7]} 23... Red8 {[%clk
0:02:57.8]} 24. Rad1 {[%clk 0:04:27.4]} 24... Rxd1 {[%clk 0:02:55.9]} 25. Rxd1
{[%clk 0:04:26.4]} 25... Rxd1 {[%clk 0:02:55]} 26. Qxd1 {[%clk 0:04:25.4]} 26...
Qd7 {[%clk 0:02:53.9]} 27. Qxd7 {[%clk 0:04:21.5]} 27... Nxd7 {[%clk 0:02:53.8]}
28. Kg2 {[%clk 0:04:16.3]} 28... f5 {[%clk 0:02:48.4]} 29. f3 {[%clk 0:04:14.1]}
29... fxe4 {[%clk 0:02:42.1]} 30. fxe4 {[%clk 0:04:13.1]} 30... Kf7 {[%clk
0:02:40.9]} 31. Be2 {[%clk 0:04:12.2]} 31... Ke6 {[%clk 0:02:39.4]} 32. Bg4+
{[%clk 0:04:09.8]} 32... Ke7 {[%clk 0:02:37.8]} 33. Bc5+ {[%clk 0:04:06.3]}
33... Nxc5 {[%clk 0:02:36]} 34. bxc5 {[%clk 0:04:05.4]} 34... h5 {[%clk
0:02:35.3]} 35. Bxc8 {[%clk 0:04:04]} 35... Kd8 {[%clk 0:02:31.6]} 36. Bxb7
{[%clk 0:04:02.9]} 36... Kc7 {[%clk 0:02:30.6]} 37. a6 {[%clk 0:04:02.2]} 37...
Kb8 {[%clk 0:02:29.3]} 38. Na5 {[%clk 0:03:59.5]} 38... g5 {[%clk 0:02:26.9]}
39. Nxc6+ {[%clk 0:03:58.3]} 39... Kc7 {[%clk 0:02:25.4]} 40. Ne7 {[%clk
0:03:56.8]} 40... Kb8 {[%clk 0:02:22.8]} 41. Nf5 {[%clk 0:03:54.8]} 41... g4
{[%clk 0:02:21.6]} 42. Nxg7 {[%clk 0:03:53.4]} 42... gxh3+ {[%clk 0:02:20.7]}
43. Kxh3 {[%clk 0:03:52.7]} 43... h4 {[%clk 0:02:20.6]} 44. gxh4 {[%clk
0:03:51.5]} 44... Ka7 {[%clk 0:02:18.1]} 45. h5 {[%clk 0:03:50.7]} 45... Kb8
{[%clk 0:02:16.8]} 46. c6 {[%clk 0:03:50.1]} 46... Kc7 {[%clk 0:02:15.4]} 47. a7
{[%clk 0:03:49.1]} 47... Kb6 {[%clk 0:02:14.3]} 48. a8=Q {[%clk 0:03:47.6]}
48... Kc5 {[%clk 0:02:13.1]} 49. c7 {[%clk 0:03:46.8]} 49... Kd6 {[%clk
0:02:11.7]} 50. c8=N+ {[%clk 0:03:44.1]} 50... Kc7 {[%clk 0:02:08]} 51. Ne6+
{[%clk 0:03:41.7]} 51... Kd7 {[%clk 0:02:06.8]} 52. Bc6+ {[%clk 0:03:39.6]}
52... Kxe6 {[%clk 0:02:05.4]} 53. Bd5+ {[%clk 0:03:38.8]} 53... Kf6 {[%clk
0:02:03.7]} 54. Qc6+ {[%clk 0:03:37.5]} 54... Kg5 {[%clk 0:02:02.8]} 55. Qg6+
{[%clk 0:03:36]} 55... Kf4 {[%clk 0:02:01.9]} 56. Qf5+ {[%clk 0:03:35.3]} 56...
Ke3 {[%clk 0:02:01.1]} 57. Qxe5 {[%clk 0:03:34.4]} 57... Kd3 {[%clk 0:01:59.1]}
58. Bc4+ {[%clk 0:03:33.4]} 58... Kxc4 {[%clk 0:01:57.6]} 59. Qd6 {[%clk
0:03:32.6]} 59... Kc3 {[%clk 0:01:56.7]} 60. Kg3 {[%clk 0:03:31.3]} 60... Kc4
{[%clk 0:01:56.6]} 61. Kf3 {[%clk 0:03:30.6]} 61... Kb5 {[%clk 0:01:56]} 62. Qc7
{[%clk 0:03:29.3]} 62... Kb4 {[%clk 0:01:54.8]} 63. Ke3 {[%clk 0:03:28.4]} 63...
Kb5 {[%clk 0:01:53.9]} 64. Kd4 {[%clk 0:03:27.7]} 64... Kb4 {[%clk 0:01:53.3]}
65. Qb6+ {[%clk 0:03:26.9]} 65... Ka4 {[%clk 0:01:52.4]} 66. Kc3 {[%clk
0:03:26]} 66... Ka3 {[%clk 0:01:50.1]} 67. Qa6# {[%clk 0:03:25.4]} 1-0

[Event "Live Chess"]
[Site "Chess.com"]
[Date "2023.05.21"]
[Round "-"]
[White "LiamClery2020"]
[Black "GEMdzq"]
[Result "0-1"]
[WhiteElo "2057"]
[BlackElo "2229"]
[TimeControl "300"]
[EndTime "16:47:10 PDT"]
[Termination "GEMdzq won by resignation"]

1. e4 {[%clk 0:04:59]} 1... d6 {[%clk 0:04:59]} 2. d4 {[%clk 0:04:57.9]} 2...
Nf6 {[%clk 0:04:58.6]} 3. Nc3 {[%clk 0:04:57.2]} 3... g6 {[%clk 0:04:58.2]} 4.
Be3 {[%clk 0:04:56.6]} 4... Bg7 {[%clk 0:04:57.3]} 5. f3 {[%clk 0:04:56.1]} 5...
c6 {[%clk 0:04:56.5]} 6. Qd2 {[%clk 0:04:55.7]} 6... b5 {[%clk 0:04:56]} 7. a3
{[%clk 0:04:48.9]} 7... Nbd7 {[%clk 0:04:41.6]} 8. Bh6 {[%clk 0:04:47.3]} 8...
Bxh6 {[%clk 0:04:31.4]} 9. Qxh6 {[%clk 0:04:47.2]} 9... Qa5 {[%clk 0:04:29.1]}
10. Qd2 {[%clk 0:04:44.4]} 10... O-O {[%clk 0:04:25.7]} 11. Nge2 {[%clk
0:04:41.3]} 11... e5 {[%clk 0:04:23.3]} 12. h4 {[%clk 0:04:35.5]} 12... h5
{[%clk 0:04:15.2]} 13. g4 {[%clk 0:04:30.7]} 13... exd4 {[%clk 0:04:06.8]} 14.
Nxd4 {[%clk 0:04:29.7]} 14... Ne5 {[%clk 0:04:02.7]} 15. g5 {[%clk 0:04:17.6]}
15... Ne8 {[%clk 0:03:33.3]} 16. f4 {[%clk 0:04:12.4]} 16... c5 {[%clk
0:03:31.8]} 17. fxe5 {[%clk 0:04:04]} 17... cxd4 {[%clk 0:03:31.7]} 18. Qxd4
{[%clk 0:04:00.8]} 18... dxe5 {[%clk 0:03:27.8]} 19. Qd5 {[%clk 0:03:50.2]}
19... Nc7 {[%clk 0:03:22]} 20. Qxe5 {[%clk 0:03:45]} 20... Re8 {[%clk
0:03:20.3]} 21. Qc5 {[%clk 0:03:40.1]} 21... Rxe4+ {[%clk 0:03:16.8]} 22. Kf2
{[%clk 0:03:29.2]} 22... Rf4+ {[%clk 0:03:08.9]} 23. Kg3 {[%clk 0:03:28.3]}
23... Rg4+ {[%clk 0:03:05.2]} 24. Kf2 {[%clk 0:03:23.9]} 24... Bb7 {[%clk
0:02:55.3]} 25. b4 {[%clk 0:03:12.6]} 25... Qb6 {[%clk 0:02:43.5]} 26. Qxb6
{[%clk 0:03:08.3]} 26... axb6 {[%clk 0:02:43.4]} 27. Rh3 {[%clk 0:03:07.3]}
27... Ne6 {[%clk 0:02:28.4]} 28. Bxb5 {[%clk 0:02:58.3]} 28... Rg2+ {[%clk
0:02:26.3]} 29. Kf1 {[%clk 0:02:52.4]} 29... Rxc2 {[%clk 0:02:18.8]} 30. Re3
{[%clk 0:02:48.9]} 30... Rh2 {[%clk 0:02:11.4]} 31. Ra2 {[%clk 0:02:44.4]} 31...
Rh1+ {[%clk 0:02:05.4]} 32. Kf2 {[%clk 0:02:41.6]} 32... Rxh4 {[%clk 0:02:04.5]}
33. Bd7 {[%clk 0:02:34.6]} 33... Nxg5 {[%clk 0:02:01.5]} 34. Rae2 {[%clk
0:02:26.8]} 34... Rh2+ {[%clk 0:01:56.2]} 35. Kg1 {[%clk 0:02:25.9]} 35... Rxe2
{[%clk 0:01:53.1]} 36. Nxe2 {[%clk 0:02:21.9]} 36... Kg7 {[%clk 0:01:46.6]} 37.
Nd4 {[%clk 0:02:15.8]} 37... Rd8 {[%clk 0:01:43.9]} 38. Re7 {[%clk 0:02:14.8]}
38... Kf6 {[%clk 0:01:39.3]} 0-1

[Event "Live Chess"]
[Site "Chess.com"]
[Date "2023.05.21"]
[Round "-"]
[White "Shepherds_Pie"]
[Black "WelshTiger"]
[Result "0-1"]
[WhiteElo "1926"]
[BlackElo "2361"]
[TimeControl "300"]
[EndTime "16:47:14 PDT"]
[Termination "WelshTiger won by resignation"]

1. c4 {[%clk 0:04:56.3]} 1... e6 {[%clk 0:04:57.3]} 2. Nc3 {[%clk 0:04:54.4]}
2... d5 {[%clk 0:04:57.2]} 3. d4 {[%clk 0:04:53]} 3... c5 {[%clk 0:04:55.3]} 4.
cxd5 {[%clk 0:04:51]} 4... exd5 {[%clk 0:04:54.1]} 5. Nf3 {[%clk 0:04:49.4]}
5... Nc6 {[%clk 0:04:52.8]} 6. g3 {[%clk 0:04:48.1]} 6... Nf6 {[%clk 0:04:51.2]}
7. Bg2 {[%clk 0:04:47.2]} 7... Be7 {[%clk 0:04:50.5]} 8. O-O {[%clk 0:04:46.1]}
8... O-O {[%clk 0:04:49.6]} 9. dxc5 {[%clk 0:04:44.5]} 9... d4 {[%clk
0:04:48.2]} 10. Na4 {[%clk 0:04:42.9]} 10... Bf5 {[%clk 0:04:47.2]} 11. Bg5
{[%clk 0:04:38.1]} 11... h6 {[%clk 0:04:40.9]} 12. Bd2 {[%clk 0:04:29.3]} 12...
Be4 {[%clk 0:04:39.3]} 13. Rc1 {[%clk 0:04:27.1]} 13... Qd5 {[%clk 0:04:37.4]}
14. a3 {[%clk 0:04:12.7]} 14... Ne5 {[%clk 0:04:31.3]} 15. Nh4 {[%clk
0:04:09.9]} 15... Rad8 {[%clk 0:04:22.9]} 16. Bf4 {[%clk 0:03:54.4]} 16... Bxg2
{[%clk 0:03:41.9]} 17. Nxg2 {[%clk 0:03:50.7]} 17... Ng6 {[%clk 0:03:40.6]} 18.
b4 {[%clk 0:03:43.8]} 18... Ne4 {[%clk 0:03:38.1]} 19. Qd3 {[%clk 0:03:36.7]}
19... Bf6 {[%clk 0:03:36]} 20. f3 {[%clk 0:03:32]} 20... Ng5 {[%clk 0:03:31.8]}
21. Bxg5 {[%clk 0:03:21.4]} 21... hxg5 {[%clk 0:03:31.7]} 22. Nb2 {[%clk
0:03:13]} 22... Rfe8 {[%clk 0:03:29.6]} 23. Nc4 {[%clk 0:03:06.6]} 23... Re6
{[%clk 0:03:21.6]} 24. Nd2 {[%clk 0:03:04.6]} 24... Be7 {[%clk 0:03:15.2]} 25.
Ne4 {[%clk 0:03:01]} 25... f5 {[%clk 0:03:13.4]} 26. Nd6 {[%clk 0:02:48.8]}
26... Bxd6 {[%clk 0:03:08]} 27. cxd6 {[%clk 0:02:47.5]} 27... Rdxd6 {[%clk
0:03:06.5]} 28. Rc5 {[%clk 0:02:46]} 28... Qa2 {[%clk 0:03:01.8]} 29. Qxf5
{[%clk 0:02:37.8]} 29... Rxe2 {[%clk 0:02:54.3]} 30. Rc8+ {[%clk 0:02:36]} 30...
Kh7 {[%clk 0:02:52.8]} 31. Qh3+ {[%clk 0:02:34.5]} 31... Nh4 {[%clk 0:02:50.8]}
32. Nxh4 {[%clk 0:02:32.4]} 32... gxh4 {[%clk 0:02:43.8]} 33. Qxh4+ {[%clk
0:02:30.7]} 33... Rh6 {[%clk 0:02:43]} 0-1

[Event "Live Chess"]
[Site "Chess.com"]
[Date "2023.05.21"]
[Round "-"]
[White "Long1968"]
[Black "mikkyb4"]
[Result "0-1"]
[WhiteElo "1132"]
[BlackElo "1037"]
[TimeControl "300"]
[EndTime "16:47:34 PDT"]
[Termination "mikkyb4 won on time"]

1. e4 {[%clk 0:04:56.8]} 1... g6 {[%clk 0:04:58.3]} 2. d4 {[%clk 0:04:54]} 2...
Bg7 {[%clk 0:04:57.4]} 3. Nc3 {[%clk 0:04:51]} 3... d6 {[%clk 0:04:56.5]} 4. Bc4
{[%clk 0:04:48.4]} 4... Nc6 {[%clk 0:04:50.8]} 5. Nf3 {[%clk 0:04:39.1]} 5...
Bg4 {[%clk 0:04:49]} 6. d5 {[%clk 0:04:18.6]} 6... Nd4 {[%clk 0:04:46.8]} 7. Be2
{[%clk 0:04:06.5]} 7... Bxf3 {[%clk 0:04:23.9]} 8. Bxf3 {[%clk 0:04:01.2]} 8...
c5 {[%clk 0:04:19.5]} 9. Be3 {[%clk 0:03:54.3]} 9... Qb6 {[%clk 0:04:07.3]} 10.
Rb1 {[%clk 0:02:34.1]} 10... e5 {[%clk 0:03:58.8]} 11. O-O {[%clk 0:01:55.4]}
11... Ne7 {[%clk 0:03:54.9]} 12. Be2 {[%clk 0:01:42.2]} 12... O-O {[%clk
0:03:46.1]} 13. Na4 {[%clk 0:01:12.2]} 13... Qc7 {[%clk 0:03:32.1]} 14. c3
{[%clk 0:01:05.6]} 14... Nxe2+ {[%clk 0:03:26.5]} 15. Qxe2 {[%clk 0:01:02.5]}
15... f5 {[%clk 0:03:25.1]} 16. f3 {[%clk 0:00:56.5]} 16... f4 {[%clk 0:03:22]}
17. Bd2 {[%clk 0:00:52.2]} 17... a6 {[%clk 0:03:06.6]} 18. b4 {[%clk 0:00:43.9]}
18... b6 {[%clk 0:03:00.7]} 19. bxc5 {[%clk 0:00:35.6]} 19... bxc5 {[%clk
0:02:59.1]} 20. Rb3 {[%clk 0:00:18.9]} 20... g5 {[%clk 0:02:56]} 21. Rfb1 {[%clk
0:00:13.7]} 21... Qd7 {[%clk 0:02:32.1]} 22. Nb2 {[%clk 0:00:09.8]} 22... h5
{[%clk 0:02:20.2]} 23. Nc4 {[%clk 0:00:05.4]} 23... g4 {[%clk 0:02:16.4]} 24.
Nb6 {[%clk 0:00:00.3]} 24... gxf3 {[%clk 0:01:57.1]} 0-1

[Event "Live Chess"]
[Site "Chess.com"]
[Date "2023.05.21"]
[Round "-"]
[White "domrobson"]
[Black "Hussamalhaidar"]
[Result "1-0"]
[WhiteElo "1784"]
[BlackElo "1039"]
[TimeControl "300"]
[EndTime "16:47:54 PDT"]
[Termination "domrobson won by resignation"]

1. d4 {[%clk 0:04:59.4]} 1... e5 {[%clk 0:04:49.8]} 2. dxe5 {[%clk 0:04:55.7]}
2... d6 {[%clk 0:04:49.3]} 3. Nc3 {[%clk 0:04:51.8]} 3... dxe5 {[%clk
0:04:46.6]} 4. Qxd8+ {[%clk 0:04:50.4]} 4... Kxd8 {[%clk 0:04:45.2]} 5. Nf3
{[%clk 0:04:46.2]} 5... Nc6 {[%clk 0:04:40.5]} 6. e4 {[%clk 0:04:42.7]} 6... Nf6
{[%clk 0:04:38.5]} 7. Bb5 {[%clk 0:04:41]} 7... a6 {[%clk 0:04:35.5]} 8. Bxc6
{[%clk 0:04:39.9]} 8... bxc6 {[%clk 0:04:34.3]} 9. Nxe5 {[%clk 0:04:39.1]} 9...
Be6 {[%clk 0:04:30.7]} 10. Nxc6+ {[%clk 0:04:36.7]} 10... Kd7 {[%clk 0:04:21.9]}
11. Ne5+ {[%clk 0:04:35.6]} 11... Kd6 {[%clk 0:04:17.1]} 12. Bf4 {[%clk
0:04:34.6]} 12... Ng4 {[%clk 0:04:06.8]} 13. Nxg4+ {[%clk 0:04:31.5]} 1-0

[Event "Live Chess"]
[Site "Chess.com"]
[Date "2023.05.21"]
[Round "-"]
[White "Doge_Dandolo"]
[Black "HD_IN4k"]
[Result "1-0"]
[WhiteElo "1996"]
[BlackElo "388"]
[TimeControl "300"]
[EndTime "16:48:00 PDT"]
[Termination "Doge_Dandolo won by checkmate"]

1. Nf3 {[%clk 0:04:57.1]} 1... g6 {[%clk 0:04:58.8]} 2. c4 {[%clk 0:04:56.3]}
2... Bg7 {[%clk 0:04:58]} 3. Nc3 {[%clk 0:04:55.7]} 3... e5 {[%clk 0:04:53]} 4.
d4 {[%clk 0:04:50.6]} 4... d6 {[%clk 0:04:51.6]} 5. dxe5 {[%clk 0:04:48.6]} 5...
dxe5 {[%clk 0:04:50.3]} 6. Qxd8+ {[%clk 0:04:46.9]} 6... Kxd8 {[%clk 0:04:47.6]}
7. Bg5+ {[%clk 0:04:45.9]} 7... Bf6 {[%clk 0:04:41.7]} 8. O-O-O+ {[%clk
0:04:41.9]} 8... Ke8 {[%clk 0:04:36.3]} 9. Be3 {[%clk 0:04:36.2]} 9... Nc6
{[%clk 0:04:26.9]} 10. Nd5 {[%clk 0:04:34.9]} 10... Kf8 {[%clk 0:04:13]} 11.
Nxc7 {[%clk 0:04:32.8]} 11... Rb8 {[%clk 0:04:11]} 12. g3 {[%clk 0:04:28.3]}
12... b6 {[%clk 0:03:59.1]} 13. Bg2 {[%clk 0:04:24.8]} 13... Rb7 {[%clk
0:03:55.8]} 14. Nd5 {[%clk 0:04:21.3]} 14... Rd7 {[%clk 0:03:51.6]} 15. Bh3
{[%clk 0:04:16.4]} 15... a5 {[%clk 0:03:38.6]} 16. Bxd7 {[%clk 0:04:14.6]} 16...
Bxd7 {[%clk 0:03:36.3]} 17. Nxf6 {[%clk 0:04:12.8]} 17... Nxf6 {[%clk 0:03:33]}
18. Bxb6 {[%clk 0:04:11.2]} 18... Nb4 {[%clk 0:03:29.5]} 19. a3 {[%clk
0:04:01.1]} 19... Na2+ {[%clk 0:03:27.9]} 20. Kc2 {[%clk 0:03:59.2]} 20... Bf5+
{[%clk 0:03:22.4]} 21. Kb3 {[%clk 0:03:51.9]} 21... a4+ {[%clk 0:03:11.2]} 22.
Kxa4 {[%clk 0:03:46.4]} 22... Kg7 {[%clk 0:03:06.3]} 23. Nxe5 {[%clk 0:03:40.2]}
23... Ra8+ {[%clk 0:03:01.6]} 24. Kb3 {[%clk 0:03:37.8]} 24... Ne4 {[%clk
0:02:49.3]} 25. Kxa2 {[%clk 0:03:26]} 25... Nxf2 {[%clk 0:02:44.7]} 26. Rhf1
{[%clk 0:03:24.6]} 26... Nxd1 {[%clk 0:02:43.3]} 27. Rxd1 {[%clk 0:03:23.6]}
27... Rb8 {[%clk 0:02:32.1]} 28. c5 {[%clk 0:03:22.1]} 28... f6 {[%clk
0:02:27.8]} 29. Nc6 {[%clk 0:03:20.1]} 29... Rb7 {[%clk 0:02:24.8]} 30. Rd8
{[%clk 0:03:16]} 30... Be6+ {[%clk 0:02:21.4]} 31. Kb1 {[%clk 0:03:13.7]} 31...
Rd7 {[%clk 0:02:06.3]} 32. Rxd7+ {[%clk 0:03:11.9]} 32... Bxd7 {[%clk
0:02:05.3]} 33. Nd4 {[%clk 0:03:11.2]} 33... Bf5+ {[%clk 0:02:02.8]} 34. Nxf5+
{[%clk 0:03:09.6]} 34... gxf5 {[%clk 0:02:02.1]} 35. c6 {[%clk 0:03:09.2]} 35...
Kf8 {[%clk 0:01:59.4]} 36. c7 {[%clk 0:03:08.8]} 36... Ke7 {[%clk 0:01:57.1]}
37. c8=Q {[%clk 0:03:08]} 37... Kd6 {[%clk 0:01:56.1]} 38. Qc5+ {[%clk
0:03:06.1]} 38... Ke6 {[%clk 0:01:54.1]} 39. Bc7 {[%clk 0:03:01.1]} 39... h5
{[%clk 0:01:54]} 40. Qd6+ {[%clk 0:02:59.8]} 40... Kf7 {[%clk 0:01:52.1]} 41.
Bd8 {[%clk 0:02:58.4]} 41... f4 {[%clk 0:01:42.2]} 42. Qxf6+ {[%clk 0:02:57.3]}
42... Ke8 {[%clk 0:01:40.1]} 43. Qe7# {[%clk 0:02:56]} 1-0

[Event "Live Chess"]
[Site "Chess.com"]
[Date "2023.05.21"]
[Round "-"]
[White "raminguy"]
[Black "Brooms1989"]
[Result "1-0"]
[WhiteElo "1967"]
[BlackElo "1106"]
[TimeControl "300"]
[EndTime "16:48:08 PDT"]
[Termination "raminguy won by resignation"]

1. d4 {[%clk 0:04:58.1]} 1... Nf6 {[%clk 0:04:58.4]} 2. Nc3 {[%clk 0:04:57.3]}
2... g6 {[%clk 0:04:57.2]} 3. Bf4 {[%clk 0:04:56.3]} 3... Bg7 {[%clk 0:04:56.1]}
4. Qd2 {[%clk 0:04:56.1]} 4... O-O {[%clk 0:04:52.1]} 5. Bh6 {[%clk 0:04:54.9]}
5... d6 {[%clk 0:04:51.6]} 6. h4 {[%clk 0:04:53.4]} 6... Nbd7 {[%clk 0:04:49.5]}
7. h5 {[%clk 0:04:52.6]} 7... Bxh6 {[%clk 0:04:48.3]} 8. Qxh6 {[%clk 0:04:50.5]}
8... Nb6 {[%clk 0:04:43.3]} 9. hxg6 {[%clk 0:04:48.5]} 9... fxg6 {[%clk
0:04:41.5]} 10. O-O-O {[%clk 0:04:45.9]} 10... Rf7 {[%clk 0:04:38.3]} 11. Nf3
{[%clk 0:04:40.3]} 11... Qf8 {[%clk 0:04:37.5]} 12. Qh4 {[%clk 0:04:37.5]} 12...
Bg4 {[%clk 0:04:32.4]} 13. Ng5 {[%clk 0:04:35.5]} 13... Rg7 {[%clk 0:04:25.3]}
14. f3 {[%clk 0:04:32.3]} 14... Be6 {[%clk 0:04:22.1]} 15. Nxe6 {[%clk
0:04:30.5]} 1-0

[Event "Live Chess"]
[Site "Chess.com"]
[Date "2023.05.21"]
[Round "-"]
[White "manthanit"]
[Black "therealab0ne"]
[Result "1-0"]
[WhiteElo "1041"]
[BlackElo "708"]
[TimeControl "300"]
[EndTime "16:48:13 PDT"]
[Termination "manthanit won on time"]

1. e4 {[%clk 0:04:58.6]} 1... c5 {[%clk 0:04:59.1]} 2. Nf3 {[%clk 0:04:57.2]}
2... Nc6 {[%clk 0:04:58.4]} 3. Bc4 {[%clk 0:04:56.4]} 3... e6 {[%clk 0:04:57]}
4. O-O {[%clk 0:04:55.3]} 4... Nf6 {[%clk 0:04:56.4]} 5. Nc3 {[%clk 0:04:53.4]}
5... d5 {[%clk 0:04:55.7]} 6. exd5 {[%clk 0:04:52.2]} 6... exd5 {[%clk
0:04:55.3]} 7. Bb5 {[%clk 0:04:50.9]} 7... Bd6 {[%clk 0:04:43.1]} 8. Re1+ {[%clk
0:04:49.5]} 8... Be7 {[%clk 0:04:36.1]} 9. d3 {[%clk 0:04:40.2]} 9... O-O {[%clk
0:04:34.5]} 10. Bxc6 {[%clk 0:04:15]} 10... bxc6 {[%clk 0:04:33.4]} 11. h3
{[%clk 0:04:12.8]} 11... d4 {[%clk 0:04:31.7]} 12. Ne2 {[%clk 0:04:10.4]} 12...
Bd7 {[%clk 0:04:01.6]} 13. c3 {[%clk 0:04:08.4]} 13... dxc3 {[%clk 0:03:12.3]}
14. bxc3 {[%clk 0:04:06.2]} 14... Qc8 {[%clk 0:02:39.1]} 15. Ng3 {[%clk
0:03:48.7]} 15... Bxh3 {[%clk 0:02:29]} 16. gxh3 {[%clk 0:03:47.6]} 16... Qxh3
{[%clk 0:02:27.6]} 17. Nh2 {[%clk 0:03:44.7]} 17... Bd6 {[%clk 0:01:58.7]} 18.
Qf3 {[%clk 0:03:33.5]} 18... Rae8 {[%clk 0:01:29.7]} 19. Bf4 {[%clk 0:03:31.1]}
19... Rxe1+ {[%clk 0:01:20.2]} 20. Rxe1 {[%clk 0:03:28.3]} 20... Bxf4 {[%clk
0:01:08.1]} 21. Qxf4 {[%clk 0:03:27.1]} 21... Nd5 {[%clk 0:01:07.4]} 22. Qd6
{[%clk 0:03:14.9]} 22... g5 {[%clk 0:00:54.4]} 23. Ne2 {[%clk 0:02:40.5]} 23...
Re8 {[%clk 0:00:38.1]} 24. Qg3 {[%clk 0:02:38.5]} 24... Rxe2 {[%clk 0:00:13.4]}
25. Rxe2 {[%clk 0:02:32.2]} 25... Qxg3+ {[%clk 0:00:05.8]} 26. fxg3 {[%clk
0:02:30.2]} 26... Nxc3 {[%clk 0:00:05]} 27. Rc2 {[%clk 0:02:22.2]} 27... Nd5
{[%clk 0:00:00.8]} 28. Nf3 {[%clk 0:02:19.9]} 28... Ne3 {[%clk 0:00:00.2]} 29.
Rxc5 {[%clk 0:02:13.8]} 1-0